[Event "Titled Tuesday Blitz February 07 Late 2023"]
[White "Castillo Pena, Patricia Evarista"]
[Black "Ardila, Oscar Humberto"]
[WhiteFideId "6412106"]
[BlackFideId "4404742"]
[WhiteElo "1783"]
[BlackElo "1982"]
[Result "0-1"]
[Round "09"]
[TimeControl "180+2"]
[Date "2023.02.07"]
[WhiteClock "0:00:03"]
[BlackClock "0:00:38"]

1. d4 {[%clk 0:03:00]}  Nf6 {[%clk 0:02:59]} 2. Nf3 {[%clk 0:02:56]}  b6 {[%clk 0:02:58]} 3. b3 {[%clk 0:02:53]}  Bb7 {[%clk 0:02:59]} 4. Bb2 {[%clk 0:02:53]}  e6 {[%clk 0:02:56]} 5. e3 {[%clk 0:02:50]}  Be7 {[%clk 0:02:56]} 6. Bd3 {[%clk 0:02:46]}  O-O {[%clk 0:02:56]} 7. Nbd2 {[%clk 0:02:39]}  d5 {[%clk 0:02:56]} 8. O-O {[%clk 0:02:34]}  Ne4 {[%clk 0:02:55]} 9. Qe2 {[%clk 0:02:29]}  f5 {[%clk 0:02:54]} 10. c4 {[%clk 0:02:27]}  Nd7 {[%clk 0:02:47]} 11. Rfd1 {[%clk 0:02:26]}  Bd6 {[%clk 0:02:43]} 12. Rac1 {[%clk 0:02:24]}  Qf6 {[%clk 0:02:38]} 13. c5 {[%clk 0:01:38]}  bxc5 {[%clk 0:02:21]} 14. Nxe4 {[%clk 0:01:29]}  fxe4 {[%clk 0:02:18]} 15. dxc5 {[%clk 0:01:28]}  exf3 {[%clk 0:02:15]} 16. Bxf6 {[%clk 0:01:21]}  fxe2 {[%clk 0:02:14]} 17. Bxe2 {[%clk 0:01:21]}  Nxc5 {[%clk 0:01:48]} 18. Bd4 {[%clk 0:01:17]}  Ne4 {[%clk 0:01:44]} 19. Bf3 {[%clk 0:01:12]}  Nf6 {[%clk 0:01:39]} 20. Rc2 {[%clk 0:01:05]}  e5 {[%clk 0:01:34]} 21. Bb2 {[%clk 0:00:58]}  c6 {[%clk 0:01:23]} 22. h3 {[%clk 0:00:36]}  Rac8 {[%clk 0:01:22]} 23. Rcd2 {[%clk 0:00:30]}  Rfd8 {[%clk 0:01:17]} 24. g3 {[%clk 0:00:19]}  Kf7 {[%clk 0:01:14]} 25. Bg2 {[%clk 0:00:18]}  Ke6 {[%clk 0:01:14]} 26. h4 {[%clk 0:00:17]}  Ke7 {[%clk 0:01:13]} 27. Bh3 {[%clk 0:00:16]}  Rb8 {[%clk 0:01:12]} 28. Bf5 {[%clk 0:00:15]}  Bc8 {[%clk 0:01:12]} 29. Bc2 {[%clk 0:00:10]}  Bg4 {[%clk 0:01:10]} 30. Rc1 {[%clk 0:00:09]}  Rbc8 {[%clk 0:01:09]} 31. Bb1 {[%clk 0:00:07]}  Bf3 {[%clk 0:01:08]} 32. Kh2 {[%clk 0:00:06]}  Ng4+ {[%clk 0:01:07]} 33. Kg1 {[%clk 0:00:06]}  Bb4 {[%clk 0:01:03]} 34. Rdc2 {[%clk 0:00:06]}  d4 {[%clk 0:00:45]} 35. exd4 {[%clk 0:00:05]}  exd4 {[%clk 0:00:45]} 36. Rxc6 {[%clk 0:00:05]}  Rxc6 {[%clk 0:00:44]} 37. Rxc6 {[%clk 0:00:06]}  Bxc6 {[%clk 0:00:44]} 38. Bxh7 {[%clk 0:00:03]}  Bf3 {[%clk 0:00:38]} 0-1


[Site "https://www.chess.com"]

[Event "Titled Tuesday Blitz February 07 Late 2023"]
[White "Mohammadian, Mohammad"]
[Black "rikchessmx"]
[WhiteFideId "12566055"]
[WhiteElo "1398"]
[BlackElo "2230"]
[Result "0-1"]
[Round "09"]
[TimeControl "180+2"]
[Date "2023.02.07"]
[WhiteClock "0:00:19"]
[BlackClock "0:02:06"]

1. e4 {[%clk 0:03:00]}  e5 {[%clk 0:02:52]} 2. Nf3 {[%clk 0:02:58]}  Nc6 {[%clk 0:02:53]} 3. Bb5 {[%clk 0:02:56]}  a6 {[%clk 0:02:52]} 4. Ba4 {[%clk 0:02:55]}  Nf6 {[%clk 0:02:52]} 5. O-O {[%clk 0:02:54]}  Be7 {[%clk 0:02:52]} 6. Re1 {[%clk 0:02:53]}  b5 {[%clk 0:02:52]} 7. Bb3 {[%clk 0:02:52]}  O-O {[%clk 0:02:53]} 8. c3 {[%clk 0:02:51]}  d5 {[%clk 0:02:52]} 9. exd5 {[%clk 0:02:50]}  Nxd5 {[%clk 0:02:53]} 10. Nxe5 {[%clk 0:02:49]}  Nxe5 {[%clk 0:02:54]} 11. Rxe5 {[%clk 0:02:49]}  c6 {[%clk 0:02:55]} 12. Re1 {[%clk 0:02:46]}  Bd6 {[%clk 0:02:53]} 13. d4 {[%clk 0:02:45]}  Qh4 {[%clk 0:02:52]} 14. g3 {[%clk 0:02:44]}  Qh3 {[%clk 0:02:52]} 15. Be3 {[%clk 0:02:33]}  Bg4 {[%clk 0:02:50]} 16. Qd3 {[%clk 0:02:29]}  Rae8 {[%clk 0:02:41]} 17. Qf1 {[%clk 0:02:28]}  Qh5 {[%clk 0:02:41]} 18. Nd2 {[%clk 0:02:24]}  f5 {[%clk 0:02:41]} 19. a3 {[%clk 0:01:33]}  f4 {[%clk 0:02:32]} 20. Bxd5+ {[%clk 0:01:28]}  cxd5 {[%clk 0:02:31]} 21. Bxf4 {[%clk 0:01:23]}  Bxf4 {[%clk 0:02:31]} 22. gxf4 {[%clk 0:01:15]}  Bh3 {[%clk 0:02:28]} 23. Qd3 {[%clk 0:01:05]}  Rxe1+ {[%clk 0:02:18]} 24. Rxe1 {[%clk 0:01:03]}  Rxf4 {[%clk 0:02:17]} 25. Qg3 {[%clk 0:01:03]}  Rg4 {[%clk 0:02:15]} 26. Re5 {[%clk 0:00:48]}  Rxg3+ {[%clk 0:02:15]} 27. hxg3 {[%clk 0:00:43]}  Qd1+ {[%clk 0:02:13]} 28. Kh2 {[%clk 0:00:43]}  Bg4 {[%clk 0:02:07]} 29. f3 {[%clk 0:00:23]}  Qxd2+ {[%clk 0:02:06]} 30. Kg1 {[%clk 0:00:19]}  Bxf3 {[%clk 0:02:06]} 0-1


[Site "https://www.chess.com"]

[Event "Titled Tuesday Blitz February 07 Late 2023"]
[White "Michalski, Olaf"]
[Black "Desideri, Ricardo Maruchi"]
[WhiteFideId "1106740"]
[BlackFideId "2110440"]
[WhiteElo "2273"]
[BlackElo "1959"]
[Result "0-1"]
[Round "09"]
[TimeControl "180+2"]
[Date "2023.02.07"]
[WhiteClock "0:00:02"]
[BlackClock "0:00:09"]

1. d4 {[%clk 0:02:57]}  Nf6 {[%clk 0:02:58]} 2. c4 {[%clk 0:02:57]}  c5 {[%clk 0:02:57]} 3. d5 {[%clk 0:02:56]}  e6 {[%clk 0:02:58]} 4. Nc3 {[%clk 0:02:56]}  exd5 {[%clk 0:02:58]} 5. cxd5 {[%clk 0:02:57]}  d6 {[%clk 0:02:58]} 6. Nf3 {[%clk 0:02:57]}  g6 {[%clk 0:02:57]} 7. Nd2 {[%clk 0:02:57]}  b6 {[%clk 0:02:52]} 8. Nc4 {[%clk 0:02:55]}  Ba6 {[%clk 0:02:51]} 9. Ne3 {[%clk 0:02:39]}  Bg7 {[%clk 0:02:48]} 10. g3 {[%clk 0:02:38]}  O-O {[%clk 0:02:46]} 11. Bg2 {[%clk 0:02:38]}  Re8 {[%clk 0:02:46]} 12. a4 {[%clk 0:02:37]}  Nbd7 {[%clk 0:02:39]} 13. O-O {[%clk 0:02:34]}  Ne5 {[%clk 0:02:38]} 14. Nb5 {[%clk 0:02:03]}  Qd7 {[%clk 0:02:19]} 15. Qb3 {[%clk 0:01:52]}  Rac8 {[%clk 0:01:57]} 16. Nc4 {[%clk 0:01:38]}  Nxc4 {[%clk 0:01:33]} 17. Qxc4 {[%clk 0:01:37]}  Ng4 {[%clk 0:01:18]} 18. Bh3 {[%clk 0:01:31]}  f5 {[%clk 0:01:13]} 19. Bxg4 {[%clk 0:01:08]}  fxg4 {[%clk 0:01:12]} 20. e4 {[%clk 0:00:59]}  Rf8 {[%clk 0:00:47]} 21. Ra2 {[%clk 0:00:51]}  Rce8 {[%clk 0:00:37]} 22. Bf4 {[%clk 0:00:50]}  h6 {[%clk 0:00:30]} 23. b3 {[%clk 0:00:35]}  g5 {[%clk 0:00:29]} 24. Be3 {[%clk 0:00:35]}  Qe7 {[%clk 0:00:22]} 25. Rd1 {[%clk 0:00:25]}  Bxb5 {[%clk 0:00:19]} 26. axb5 {[%clk 0:00:24]}  Qxe4 {[%clk 0:00:19]} 27. Rxa7 {[%clk 0:00:21]}  Qxc4 {[%clk 0:00:15]} 28. bxc4 {[%clk 0:00:21]}  Re4 {[%clk 0:00:15]} 29. Rc1 {[%clk 0:00:20]}  Bd4 {[%clk 0:00:13]} 30. Bxd4 {[%clk 0:00:15]}  cxd4 {[%clk 0:00:12]} 31. Rd7 {[%clk 0:00:14]}  Re2 {[%clk 0:00:11]} 32. Rf1 {[%clk 0:00:13]}  d3 {[%clk 0:00:11]} 33. Rxd6 {[%clk 0:00:09]}  d2 {[%clk 0:00:12]} 34. Re6 {[%clk 0:00:09]}  Rexf2 {[%clk 0:00:10]} 35. Rd1 {[%clk 0:00:04]}  Rf1+ {[%clk 0:00:09]} 36. Rxf1 {[%clk 0:00:02]}  Rxf1+ {[%clk 0:00:09]} 37. Kxf1 {[%clk 0:00:02]}  d1=Q+ {[%clk 0:00:09]} 38. Kf2 {[%clk 0:00:03]}  Qd4+ {[%clk 0:00:09]} 39. Kg2 {[%clk 0:00:02]}  Qxc4 {[%clk 0:00:09]} 0-1


[Site "https://www.chess.com"]

[Event "Titled Tuesday Blitz February 07 Late 2023"]
[White "Hakobyan, Aram"]
[Black "Naroditsky, Daniel"]
[WhiteFideId "13306677"]
[BlackFideId "2026961"]
[WhiteElo "2608"]
[BlackElo "2618"]
[Result "1-0"]
[Round "10"]
[TimeControl "180+2"]
[Date "2023.02.07"]
[WhiteClock "0:00:19"]
[BlackClock "0:00:03"]

1. e4 {[%clk 0:03:00]}  d6 {[%clk 0:02:54]} 2. d4 {[%clk 0:03:00]}  Nc6 {[%clk 0:02:51]} 3. d5 {[%clk 0:03:00]}  Nb8 {[%clk 0:02:50]} 4. Nc3 {[%clk 0:02:59]}  Nf6 {[%clk 0:02:49]} 5. f4 {[%clk 0:02:57]}  c6 {[%clk 0:02:46]} 6. Nf3 {[%clk 0:02:52]}  g6 {[%clk 0:02:44]} 7. dxc6 {[%clk 0:02:48]}  Nxc6 {[%clk 0:02:44]} 8. e5 {[%clk 0:02:46]}  dxe5 {[%clk 0:02:30]} 9. Qxd8+ {[%clk 0:02:43]}  Nxd8 {[%clk 0:02:30]} 10. fxe5 {[%clk 0:02:40]}  Nd7 {[%clk 0:02:25]} 11. Nd5 {[%clk 0:02:37]}  Ne6 {[%clk 0:02:25]} 12. Ng5 {[%clk 0:02:30]}  Ndc5 {[%clk 0:01:58]} 13. Be3 {[%clk 0:02:17]}  h6 {[%clk 0:01:49]} 14. Nxe6 {[%clk 0:02:17]}  Nxe6 {[%clk 0:01:49]} 15. O-O-O {[%clk 0:02:17]}  Bd7 {[%clk 0:01:49]} 16. Bd2 {[%clk 0:01:31]}  Bc6 {[%clk 0:01:36]} 17. Nb4 {[%clk 0:01:30]}  Bd7 {[%clk 0:01:31]} 18. Bc3 {[%clk 0:01:28]}  Bg7 {[%clk 0:01:23]} 19. Be2 {[%clk 0:01:24]}  Rc8 {[%clk 0:01:19]} 20. Bf3 {[%clk 0:01:22]}  Nc5 {[%clk 0:01:09]} 21. Rhe1 {[%clk 0:01:20]}  Be6 {[%clk 0:01:01]} 22. Kb1 {[%clk 0:01:18]}  O-O {[%clk 0:00:59]} 23. Bd4 {[%clk 0:01:11]}  Rc7 {[%clk 0:00:56]} 24. Bf2 {[%clk 0:00:50]}  Rfc8 {[%clk 0:00:53]} 25. Bxc5 {[%clk 0:00:44]}  Rxc5 {[%clk 0:00:54]} 26. Bxb7 {[%clk 0:00:44]}  Re8 {[%clk 0:00:47]} 27. Bd5 {[%clk 0:00:40]}  Bf5 {[%clk 0:00:43]} 28. Bb3 {[%clk 0:00:35]}  Rxe5 {[%clk 0:00:43]} 29. Nc6 {[%clk 0:00:36]}  Rxe1 {[%clk 0:00:23]} 30. Rxe1 {[%clk 0:00:37]}  e5 {[%clk 0:00:12]} 31. Nxa7 {[%clk 0:00:32]}  e4 {[%clk 0:00:13]} 32. Nb5 {[%clk 0:00:33]}  e3 {[%clk 0:00:13]} 33. Nd6 {[%clk 0:00:29]}  Re7 {[%clk 0:00:13]} 34. Nxf5 {[%clk 0:00:29]}  gxf5 {[%clk 0:00:14]} 35. c3 {[%clk 0:00:25]}  f4 {[%clk 0:00:12]} 36. Kc2 {[%clk 0:00:25]}  Bf6 {[%clk 0:00:06]} 37. Bd5 {[%clk 0:00:25]}  Kg7 {[%clk 0:00:04]} 38. a4 {[%clk 0:00:24]}  Bh4 {[%clk 0:00:03]} 39. Re2 {[%clk 0:00:24]}  Kf6 {[%clk 0:00:03]} 40. a5 {[%clk 0:00:24]}  Ke5 {[%clk 0:00:03]} 41. Bf3 {[%clk 0:00:23]}  Kd6 {[%clk 0:00:03]} 42. a6 {[%clk 0:00:23]}  Kc5 {[%clk 0:00:03]} 43. b4+ {[%clk 0:00:20]}  Kb6 {[%clk 0:00:03]} 44. Bb7 {[%clk 0:00:21]}  Bf2 {[%clk 0:00:02]} 45. c4 {[%clk 0:00:19]}  Ka7 {[%clk 0:00:01]} 46. c5 {[%clk 0:00:18]}  Re5 {[%clk 0:00:02]} 47. Kb3 {[%clk 0:00:18]}  Rf5 {[%clk 0:00:01]} 48. Kc4 {[%clk 0:00:18]}  Bh4 {[%clk 0:00:02]} 49. b5 {[%clk 0:00:18]}  Be7 {[%clk 0:00:02]} 50. b6+ {[%clk 0:00:18]}  Kb8 {[%clk 0:00:03]} 51. Bd5 {[%clk 0:00:19]} 1-0


[Site "https://www.chess.com"]

[Event "Titled Tuesday Blitz February 07 Late 2023"]
[White "Andreikin, Dmitry"]
[Black "Swiercz, Dariusz"]
[WhiteFideId "4158814"]
[BlackFideId "1126881"]
[WhiteElo "2729"]
[BlackElo "2637"]
[Result "1/2-1/2"]
[Round "10"]
[TimeControl "180+2"]
[Date "2023.02.07"]
[WhiteClock "0:00:04"]
[BlackClock "0:00:07"]

1. c4 {[%clk 0:03:00]}  g6 {[%clk 0:02:55]} 2. Nc3 {[%clk 0:02:57]}  Bg7 {[%clk 0:02:52]} 3. d4 {[%clk 0:02:57]}  Nf6 {[%clk 0:02:52]} 4. e4 {[%clk 0:02:57]}  d6 {[%clk 0:02:53]} 5. h3 {[%clk 0:02:57]}  e5 {[%clk 0:02:52]} 6. d5 {[%clk 0:02:55]}  a5 {[%clk 0:02:49]} 7. g4 {[%clk 0:02:55]}  Na6 {[%clk 0:02:49]} 8. Nf3 {[%clk 0:02:55]}  Nc5 {[%clk 0:02:48]} 9. Qc2 {[%clk 0:02:52]}  Bd7 {[%clk 0:02:27]} 10. Be3 {[%clk 0:02:51]}  b6 {[%clk 0:02:28]} 11. Nd2 {[%clk 0:02:50]}  h5 {[%clk 0:02:26]} 12. g5 {[%clk 0:02:47]}  Nh7 {[%clk 0:02:27]} 13. Rg1 {[%clk 0:02:47]}  f6 {[%clk 0:02:23]} 14. gxf6 {[%clk 0:02:43]}  Qxf6 {[%clk 0:02:23]} 15. O-O-O {[%clk 0:02:40]}  O-O {[%clk 0:02:13]} 16. Kb1 {[%clk 0:02:40]}  Kh8 {[%clk 0:02:12]} 17. Rg3 {[%clk 0:02:33]}  h4 {[%clk 0:01:58]} 18. Rg1 {[%clk 0:02:33]}  Rf7 {[%clk 0:01:49]} 19. Be2 {[%clk 0:02:20]}  Bxh3 {[%clk 0:01:40]} 20. Nf3 {[%clk 0:02:20]}  Raf8 {[%clk 0:01:15]} 21. Rh1 {[%clk 0:02:01]}  Bg2 {[%clk 0:01:16]} 22. Nxh4 {[%clk 0:02:01]}  Bxh1 {[%clk 0:01:15]} 23. Rxh1 {[%clk 0:02:02]}  Kg8 {[%clk 0:01:12]} 24. Bg4 {[%clk 0:02:02]}  Ng5 {[%clk 0:01:00]} 25. f3 {[%clk 0:01:55]}  Bh6 {[%clk 0:00:47]} 26. Qg2 {[%clk 0:01:13]}  Kg7 {[%clk 0:00:46]} 27. a3 {[%clk 0:01:11]}  Nd3 {[%clk 0:00:44]} 28. Be6 {[%clk 0:01:04]}  Nf4 {[%clk 0:00:37]} 29. Bxf4 {[%clk 0:00:54]}  Qxf4 {[%clk 0:00:31]} 30. Bxf7 {[%clk 0:00:53]}  Rxf7 {[%clk 0:00:31]} 31. Ka2 {[%clk 0:00:38]}  Rf6 {[%clk 0:00:29]} 32. Nb5 {[%clk 0:00:30]}  Rf7 {[%clk 0:00:27]} 33. Na7 {[%clk 0:00:26]}  a4 {[%clk 0:00:20]} 34. Nc6 {[%clk 0:00:25]}  Qe3 {[%clk 0:00:13]} 35. Nd8 {[%clk 0:00:22]}  Rf6 {[%clk 0:00:08]} 36. Ne6+ {[%clk 0:00:18]}  Kf7 {[%clk 0:00:09]} 37. Qg4 {[%clk 0:00:11]}  Nxe6 {[%clk 0:00:04]} 38. dxe6+ {[%clk 0:00:07]}  Rxe6 {[%clk 0:00:05]} 39. Qh3 {[%clk 0:00:07]}  Ke7 {[%clk 0:00:02]} 40. Ng2 {[%clk 0:00:06]}  Qb3+ {[%clk 0:00:02]} 41. Ka1 {[%clk 0:00:05]}  Bg7 {[%clk 0:00:02]} 42. Qh7 {[%clk 0:00:05]}  Kf7 {[%clk 0:00:03]} 43. Nh4 {[%clk 0:00:04]}  Rf6 {[%clk 0:00:02]} 44. Rg1 {[%clk 0:00:04]}  Qxc4 {[%clk 0:00:01]} 45. Nxg6 {[%clk 0:00:03]}  Rxf3 {[%clk 0:00:01]} 46. Nh8+ {[%clk 0:00:03]}  Ke8 {[%clk 0:00:01]} 47. Qg6+ {[%clk 0:00:03]}  Kd8 {[%clk 0:00:01]} 48. Qg5+ {[%clk 0:00:03]}  Kc8 {[%clk 0:00:01]} 49. Qg4+ {[%clk 0:00:03]}  Kb7 {[%clk 0:00:02]} 50. Qxf3 {[%clk 0:00:03]}  Bxh8 {[%clk 0:00:02]} 51. Qe3 {[%clk 0:00:02]}  Bf6 {[%clk 0:00:02]} 52. Rc1 {[%clk 0:00:02]}  Qb3 {[%clk 0:00:02]} 53. Qxb3 {[%clk 0:00:02]}  axb3 {[%clk 0:00:03]} 54. Rc3 {[%clk 0:00:02]}  Bg5 {[%clk 0:00:03]} 55. Rxb3 {[%clk 0:00:03]}  Bh4 {[%clk 0:00:03]} 56. Kb1 {[%clk 0:00:03]}  Bf2 {[%clk 0:00:04]} 57. Kc2 {[%clk 0:00:03]}  Bd4 {[%clk 0:00:04]} 58. Rf3 {[%clk 0:00:04]}  Kc6 {[%clk 0:00:04]} 59. b4 {[%clk 0:00:03]}  b5 {[%clk 0:00:04]} 60. Kb3 {[%clk 0:00:04]}  Kb6 {[%clk 0:00:04]} 61. Rf6 {[%clk 0:00:03]}  Be3 {[%clk 0:00:04]} 62. Rg6 {[%clk 0:00:04]}  Bd4 {[%clk 0:00:04]} 63. Rg8 {[%clk 0:00:04]}  Kb7 {[%clk 0:00:05]} 64. a4 {[%clk 0:00:04]}  bxa4+ {[%clk 0:00:06]} 65. Kxa4 {[%clk 0:00:04]}  Bb6 {[%clk 0:00:06]} 66. b5 {[%clk 0:00:04]}  Bd4 {[%clk 0:00:07]} 67. Kb4 {[%clk 0:00:04]}  Bc5+ {[%clk 0:00:07]} 68. Kc4 {[%clk 0:00:05]}  Be3 {[%clk 0:00:07]} 69. Kd5 {[%clk 0:00:05]}  Bd4 {[%clk 0:00:07]} 70. Rg3 {[%clk 0:00:04]}  Bf2 {[%clk 0:00:07]} 71. Rf3 {[%clk 0:00:04]}  Bd4 {[%clk 0:00:07]} 72. Rf1 {[%clk 0:00:04]}  Be3 {[%clk 0:00:07]} 73. Rd1 {[%clk 0:00:05]}  Bb6 {[%clk 0:00:07]} 74. Rc1 {[%clk 0:00:05]}  Be3 {[%clk 0:00:07]} 75. Rc6 {[%clk 0:00:05]}  Bb6 {[%clk 0:00:08]} 76. Ke6 {[%clk 0:00:05]}  Ba5 {[%clk 0:00:07]} 77. Kd7 {[%clk 0:00:05]}  Bb6 {[%clk 0:00:08]} 78. Ke6 {[%clk 0:00:05]}  Ba5 {[%clk 0:00:08]} 79. Kd5 {[%clk 0:00:06]}  Bb6 {[%clk 0:00:09]} 80. Rc4 {[%clk 0:00:06]}  Ba5 {[%clk 0:00:08]} 81. Ra4 {[%clk 0:00:07]}  Bb6 {[%clk 0:00:08]} 82. Ra3 {[%clk 0:00:07]}  Bc5 {[%clk 0:00:09]} 83. Rf3 {[%clk 0:00:07]}  Bb6 {[%clk 0:00:09]} 84. Rf5 {[%clk 0:00:08]}  Ba5 {[%clk 0:00:08]} 85. Rg5 {[%clk 0:00:08]}  Bb6 {[%clk 0:00:09]} 86. Rh5 {[%clk 0:00:08]}  Ba5 {[%clk 0:00:09]} 87. Kc4 {[%clk 0:00:09]}  Bb6 {[%clk 0:00:10]} 88. Kb4 {[%clk 0:00:10]}  Bc5+ {[%clk 0:00:10]} 89. Ka4 {[%clk 0:00:10]}  Bb6 {[%clk 0:00:11]} 90. Rh3 {[%clk 0:00:10]}  Bd4 {[%clk 0:00:11]} 91. Rd3 {[%clk 0:00:11]}  Bc5 {[%clk 0:00:12]} 92. Rd1 {[%clk 0:00:11]}  Bb6 {[%clk 0:00:12]} 93. Rc1 {[%clk 0:00:11]}  Bd4 {[%clk 0:00:13]} 94. Kb3 {[%clk 0:00:11]}  Bb6 {[%clk 0:00:13]} 95. Rc2 {[%clk 0:00:12]}  Bd4 {[%clk 0:00:14]} 96. Kc4 {[%clk 0:00:12]}  Bc5 {[%clk 0:00:14]} 97. Rd2 {[%clk 0:00:12]}  Bb6 {[%clk 0:00:15]} 98. Rd3 {[%clk 0:00:12]}  Bg1 {[%clk 0:00:15]} 99. Rb3 {[%clk 0:00:12]}  Bb6 {[%clk 0:00:15]} 100. Ra3 {[%clk 0:00:12]}  Bc5 {[%clk 0:00:15]} 101. Ra6 {[%clk 0:00:12]}  Bb6 {[%clk 0:00:16]} 102. Kd5 {[%clk 0:00:13]}  Bd4 {[%clk 0:00:12]} 103. Ke6 {[%clk 0:00:11]}  Bb6 {[%clk 0:00:12]} 104. Kd7 {[%clk 0:00:11]}  Bd4 {[%clk 0:00:12]} 105. Ra4 {[%clk 0:00:11]}  Bc5 {[%clk 0:00:12]} 106. Rc4 {[%clk 0:00:11]}  Bb6 {[%clk 0:00:12]} 107. Rc6 {[%clk 0:00:11]}  Ba5 {[%clk 0:00:13]} 108. Rc2 {[%clk 0:00:11]}  Bb6 {[%clk 0:00:13]} 109. Rc1 {[%clk 0:00:10]}  Ba5 {[%clk 0:00:13]} 110. b6 {[%clk 0:00:09]}  Bxb6 {[%clk 0:00:14]} 111. Rb1 {[%clk 0:00:10]}  Kb8 {[%clk 0:00:05]} 112. Kc6 {[%clk 0:00:10]}  Ka7 {[%clk 0:00:05]} 113. Ra1+ {[%clk 0:00:10]}  Kb8 {[%clk 0:00:05]} 114. Ra2 {[%clk 0:00:10]}  Bd4 {[%clk 0:00:04]} 115. Rg2 {[%clk 0:00:10]}  Bb6 {[%clk 0:00:04]} 116. Rg8+ {[%clk 0:00:09]}  Ka7 {[%clk 0:00:05]} 117. Rf8 {[%clk 0:00:10]}  Ba5 {[%clk 0:00:05]} 118. Rf2 {[%clk 0:00:09]}  Bb6 {[%clk 0:00:05]} 119. Rg2 {[%clk 0:00:09]}  Kb8 {[%clk 0:00:04]} 120. Ra2 {[%clk 0:00:09]}  Bd4 {[%clk 0:00:03]} 121. Ra3 {[%clk 0:00:09]}  Bc5 {[%clk 0:00:04]} 122. Rb3+ {[%clk 0:00:09]}  Bb6 {[%clk 0:00:04]} 123. Rb4 {[%clk 0:00:09]}  Ka7 {[%clk 0:00:03]} 124. Rb5 {[%clk 0:00:10]}  Kb8 {[%clk 0:00:04]} 125. Rb1 {[%clk 0:00:09]}  Ka7 {[%clk 0:00:04]} 126. Rf1 {[%clk 0:00:10]}  Kb8 {[%clk 0:00:03]} 127. Rf7 {[%clk 0:00:10]}  Ba5 {[%clk 0:00:03]} 128. Kb5 {[%clk 0:00:10]}  Bb6 {[%clk 0:00:03]} 129. Kc4 {[%clk 0:00:04]}  Kb7 {[%clk 0:00:03]} 130. Kd5 {[%clk 0:00:05]}  Bc5 {[%clk 0:00:03]} 131. Rf1 {[%clk 0:00:05]}  c6+ {[%clk 0:00:01]} 132. Kc4 {[%clk 0:00:04]}  Kb6 {[%clk 0:00:01]} 133. Rf7 {[%clk 0:00:04]}  Bd4 {[%clk 0:00:01]} 134. Rd7 {[%clk 0:00:04]}  Bc5 {[%clk 0:00:02]} 135. Rd8 {[%clk 0:00:04]}  Kc7 {[%clk 0:00:02]} 136. Rf8 {[%clk 0:00:05]}  Kb6 {[%clk 0:00:02]} 137. Rf7 {[%clk 0:00:05]}  Ba3 {[%clk 0:00:02]} 138. Rf3 {[%clk 0:00:05]}  Bc5 {[%clk 0:00:02]} 139. Rb3+ {[%clk 0:00:05]}  Kc7 {[%clk 0:00:03]} 140. Kd3 {[%clk 0:00:05]}  d5 {[%clk 0:00:03]} 141. Rc3 {[%clk 0:00:05]}  Kd6 {[%clk 0:00:03]} 142. Rc2 {[%clk 0:00:06]}  Bd4 {[%clk 0:00:04]} 143. Rg2 {[%clk 0:00:06]}  Kc5 {[%clk 0:00:03]} 144. Rg6 {[%clk 0:00:06]}  Bb2 {[%clk 0:00:03]} 145. Rg2 {[%clk 0:00:05]}  Bd4 {[%clk 0:00:04]} 146. Rc2+ {[%clk 0:00:06]}  Kd6 {[%clk 0:00:04]} 147. Rh2 {[%clk 0:00:05]}  Kc5 {[%clk 0:00:05]} 148. Rh3 {[%clk 0:00:06]}  Bb2 {[%clk 0:00:05]} 149. Rh2 {[%clk 0:00:05]}  Bd4 {[%clk 0:00:05]} 150. Rh6 {[%clk 0:00:05]}  Bb2 {[%clk 0:00:05]} 151. Rh8 {[%clk 0:00:04]}  Bd4 {[%clk 0:00:05]} 152. Rc8 {[%clk 0:00:05]}  Kd6 {[%clk 0:00:06]} 153. Rd8+ {[%clk 0:00:05]}  Ke6 {[%clk 0:00:05]} 154. Re8+ {[%clk 0:00:04]}  Kd6 {[%clk 0:00:05]} 155. Rd8+ {[%clk 0:00:04]}  Ke6 {[%clk 0:00:06]} 156. Rg8 {[%clk 0:00:05]}  Kd6 {[%clk 0:00:06]} 157. Rg6+ {[%clk 0:00:05]}  Kc5 {[%clk 0:00:07]} 158. Re6 {[%clk 0:00:05]}  Bb2 {[%clk 0:00:07]} 159. Rh6 {[%clk 0:00:05]}  Bd4 {[%clk 0:00:07]} 160. Rh2 {[%clk 0:00:05]}  Kd6 {[%clk 0:00:07]} 161. Ra2 {[%clk 0:00:05]}  Kc5 {[%clk 0:00:07]} 162. Ra6 {[%clk 0:00:05]}  Kb5 {[%clk 0:00:07]} 163. Ra8 {[%clk 0:00:05]}  Kc5 {[%clk 0:00:07]} 164. Rd8 {[%clk 0:00:05]}  Bb2 {[%clk 0:00:07]} 165. Rc8 {[%clk 0:00:04]}  Kd6 {[%clk 0:00:07]} 166. Rb8 {[%clk 0:00:04]}  Bd4 {[%clk 0:00:07]} 167. Rd8+ {[%clk 0:00:04]} 1/2-1/2


[Site "https://www.chess.com"]

[Event "Titled Tuesday Blitz February 07 Late 2023"]
[White "Bluebaum, Matthias"]
[Black "EREBUNI91"]
[WhiteFideId "24651516"]
[WhiteElo "2669"]
[BlackElo "2759"]
[Result "1-0"]
[Round "10"]
[TimeControl "180+2"]
[Date "2023.02.07"]
[WhiteClock "0:00:24"]
[BlackClock "0:00:03"]

1. d4 {[%clk 0:03:00]}  Nf6 {[%clk 0:02:58]} 2. c4 {[%clk 0:03:00]}  e6 {[%clk 0:02:58]} 3. Nc3 {[%clk 0:03:00]}  Bb4 {[%clk 0:02:57]} 4. e3 {[%clk 0:03:01]}  d5 {[%clk 0:02:55]} 5. Bd2 {[%clk 0:03:01]}  O-O {[%clk 0:02:49]} 6. Nf3 {[%clk 0:03:01]}  b6 {[%clk 0:02:41]} 7. cxd5 {[%clk 0:03:02]}  exd5 {[%clk 0:02:37]} 8. Rc1 {[%clk 0:03:02]}  Bd6 {[%clk 0:02:29]} 9. Nb5 {[%clk 0:03:00]}  c6 {[%clk 0:02:28]} 10. Nxd6 {[%clk 0:03:00]}  Qxd6 {[%clk 0:02:29]} 11. Bd3 {[%clk 0:02:57]}  a5 {[%clk 0:02:23]} 12. Qb3 {[%clk 0:02:47]}  Ba6 {[%clk 0:02:16]} 13. Bxa6 {[%clk 0:02:44]}  Rxa6 {[%clk 0:02:13]} 14. O-O {[%clk 0:02:25]}  Rc8 {[%clk 0:02:11]} 15. Rc2 {[%clk 0:02:24]}  Nbd7 {[%clk 0:02:08]} 16. Rfc1 {[%clk 0:02:24]}  a4 {[%clk 0:02:01]} 17. Qd3 {[%clk 0:02:17]}  Raa8 {[%clk 0:02:00]} 18. h3 {[%clk 0:02:13]}  Ne4 {[%clk 0:01:54]} 19. Be1 {[%clk 0:02:07]}  c5 {[%clk 0:01:50]} 20. dxc5 {[%clk 0:01:52]}  bxc5 {[%clk 0:01:51]} 21. Rd1 {[%clk 0:01:42]}  Ndf6 {[%clk 0:00:15]} 22. Nd2 {[%clk 0:01:41]}  Nxd2 {[%clk 0:00:14]} 23. Bxd2 {[%clk 0:01:42]}  Rd8 {[%clk 0:00:14]} 24. Be1 {[%clk 0:01:35]}  Rac8 {[%clk 0:00:14]} 25. Qb5 {[%clk 0:01:33]}  Qc6 {[%clk 0:00:14]} 26. Qe2 {[%clk 0:01:28]}  c4 {[%clk 0:00:14]} 27. Bc3 {[%clk 0:01:27]}  Ne4 {[%clk 0:00:14]} 28. Bd4 {[%clk 0:01:28]}  Nc5 {[%clk 0:00:13]} 29. Qg4 {[%clk 0:01:15]}  Qg6 {[%clk 0:00:13]} 30. Qf3 {[%clk 0:00:49]}  Ne4 {[%clk 0:00:11]} 31. Rcc1 {[%clk 0:00:41]}  Rc6 {[%clk 0:00:11]} 32. Bc3 {[%clk 0:00:37]}  Rcd6 {[%clk 0:00:10]} 33. Bb4 {[%clk 0:00:36]}  R6d7 {[%clk 0:00:10]} 34. a3 {[%clk 0:00:32]}  h6 {[%clk 0:00:09]} 35. Rd4 {[%clk 0:00:32]}  Kh7 {[%clk 0:00:09]} 36. Rcd1 {[%clk 0:00:33]}  f5 {[%clk 0:00:08]} 37. h4 {[%clk 0:00:31]}  Qg4 {[%clk 0:00:07]} 38. Qxg4 {[%clk 0:00:26]}  fxg4 {[%clk 0:00:08]} 39. Ba5 {[%clk 0:00:26]}  Rb8 {[%clk 0:00:07]} 40. Rxe4 {[%clk 0:00:27]}  Rxb2 {[%clk 0:00:05]} 41. Rxc4 {[%clk 0:00:27]}  Ra7 {[%clk 0:00:03]} 42. Rxd5 {[%clk 0:00:26]}  Rf7 {[%clk 0:00:04]} 43. Rxg4 {[%clk 0:00:23]}  Rfxf2 {[%clk 0:00:03]} 44. Bc3 {[%clk 0:00:24]}  Rbc2 {[%clk 0:00:03]} 45. Rxg7+ {[%clk 0:00:24]} 1-0


[Site "https://www.chess.com"]